[Event "21st IPCA World Championship 2022"]
[Site "Ashdod"]
[Date "2022.05.15"]
[Round "8.7"]
[White "Aleksandrova, Aleksandra"]
[Black "Cosic, Radoslav"]
[Result "1-0"]
[ECO "D00"]
[WhiteElo "1687"]
[BlackElo "2003"]
[Annotator "TA"]
[PlyCount "93"]
[EventDate "2022.05.09"]
[EventType "swiss"]
[EventCountry "ISR"]
[SourceTitle "playchess.com"]
[Source "ChessBase"]
[SourceQuality "1"]
[TimeControl "5400+30"]

{[%evp 11,93,-23,-18,-22,-2,-64,-6,-30,-3,-26,75,70,70,69,74,70,72,68,96,98,104,34,62,70,52,29,30,-20,33,13,57,39,24,-35,-40,-82,-64,-135,-123,-168,320,297,653,679,29984,29984,29993,29989,29988,29989,29994,611,582,578,573,556,636,636,636,634,636,636,636,636,636,636,636,636,742,498,498,498,1114,811,29966,11842,29965,5831,5831,2013,29992,29992,29993,29994]} 1. d4 {[%emt 0:00:05]} Nf6 {[%emt 0:00:12]} 2. Nd2 {[%emt 0:00:08]} d5 {[%emt 0:00:08]} 3. e3 {[%emt 0:00:06]} e6 {[%emt 0:00:37]} 4. Bd3 {[%emt 0:00:11]} c5 {[%emt 0:00:26]} 5. c3 {[%emt 0:00:08]} Nc6 {[%emt 0:00:17]} 6. f4 {[%emt 0:00:18]} Bd6 {[%emt 0:01:11]} 7. g3 {[%emt 0:01:56] D00: 1 d4 d5: Unusual lines.} h5 {[%emt 0:01:40] [#]} 8. a4 $146 {[%emt 0:01:10]} (8. Ngf3 $11) ({Predecessor:} 8. Ngf3 Ng4 9. Qe2 f5 10. Ne5 Bxe5 11. fxe5 h4 12. Nf1 hxg3 13. Nxg3 Qh4 14. Qg2 cxd4 15. exd4 {0-1 (28) Amarasena,K (1900)-Pourramezanali,A (2098) Teheran 2008}) 8... Ng4 {[%emt 0:00:43]} (8... h4 $15 9. Qf3 c4) 9. Ndf3 {[%emt 0:07:01][%cal Bd2f3,Bf3e5,Be5g6][%mdl 32] The position is equal.} f5 {[%emt 0:02:01][%cal Oh5h4]} 10. Ne5 {[%emt 0:03:04]} O-O {[%emt 0:00:09]} (10... h4 $11 11. Nxg4 hxg3) 11. h3 {[%emt 0:17:23]} Nf6 {[%emt 0:00:14]} 12. Ng6 {[%emt 0:01:38]} Rf7 {[%emt 0:01:11]} 13. Nf3 {[%emt 0:00:22]} c4 {[%emt 0:00:42]} 14. Bc2 {[%emt 0:02:18]} Ne7 {[%emt 0:01:05]} (14... Ne4 $2 15. Bxe4 fxe4 16. Nfh4 $18) 15. Nge5 {[%emt 0:09:00]} Rf8 {[%emt 0:00:12]} 16. Nh4 {[%emt 0:07:21]} ({Better is} 16. g4 $16) 16... Qe8 {[%emt 0:00:53]} 17. g4 {[%emt 0:01:23] White is more active.} hxg4 {[%emt 0:03:21]} 18. hxg4 {[%emt 0:11:49]} Bxe5 {[%emt 0:00:02]} 19. g5 {[%emt 0:34:39] [#]} (19. dxe5 $142 Nxg4 20. Nf3) 19... Bxf4 {[%emt 0:09:11]} 20. exf4 $14 {[%emt 0:00:00]} Ng4 {[%emt 0:00:57]} 21. Qf3 {[%emt 0:00:00][%mdl 1024] White has compensation.} Kf7 {[%emt 0:07:12]} 22. Bd2 {[%emt 0:00:00]} (22. Kd2 $11) 22... Bd7 $15 {[%emt 0:00:26]} 23. Ke2 {[%emt 0:00:00][%cal Og5g6]} Rh8 {[%emt 0:00:55]} 24. g6+ {[%emt 0:00:00]} (24. Rh3 $15) 24... Kf6 $17 {[%emt 0:01:50]} 25. Rag1 {[%emt 0:00:00] Hoping for Rxg4.} Rxh4 {[%emt 0:03:24][%mdl 8192]} 26. Rxh4 $18 {[%emt 0:00:00][%cal Bh1h4,Bh4g4,Bg4g7][%mdl 32] Really sharp!} Nxg6 $2 {[%emt 0:00:02]} (26... Ng8 27. Rgxg4 (27. Rhxg4 fxg4 28. Qxg4 Ke7 $14) 27... fxg4) 27. Rhxg4 {[%emt 0:00:00][%mdl 64] [#] Pin} Ne7 {[%emt 0:04:53]} 28. Rxg7 {[%emt 0:00:00]} Qh8 {[%emt 0:00:01]} 29. Qg3 {[%emt 0:00:00][%csl Gd2,Gf4,Gg1,Gg7][%cal Rg3g5]} Qh5+ {[%emt 0:00:23]} 30. Ke1 {[%emt 0:00:00]} Rh8 {[%emt 0:00:36]} 31. Bd1 {[%emt 0:00:00]} (31. Qe3 $142 Qh4+ 32. Kd1 Qg4+ 33. R1xg4 Rh1+ 34. Be1 Rxe1+ 35. Qxe1 fxg4 36. Qe5#) 31... Qh4 {[%emt 0:00:03]} 32. Be3 {[%emt 0:00:00]} Qxg3+ {[%emt 0:00:29]} 33. R1xg3 {[%emt 0:00:00]} a5 {[%emt 0:00:02]} 34. Bg1 {[%emt 0:00:00]} Bc6 {[%emt 0:00:06]} 35. Kf2 {[%emt 0:00:00]} Rh4 {[%emt 0:00:06]} 36. Ke3 {[%emt 0:00:00]} Rh1 {[%emt 0:01:12]} 37. R7g5 {[%emt 0:00:00]} Be8 {[%emt 0:00:23]} 38. Bf3 {[%emt 0:00:00]} Rh8 {[%emt 0:00:19]} 39. Rg2 {[%emt 0:00:00]} Bxa4 {[%emt 0:01:26]} 40. Rh2 {[%emt 0:00:00] Inhibits Rh3.} Rxh2 {[%emt 0:00:21]} 41. Bxh2 {[%emt 0:00:00]} Bc2 {[%emt 0:02:56]} (41... Be8 $142 42. Bg3 Bg6) 42. Bg3 {[%emt 0:00:03]} Be4 {[%emt 0:00:15]} 43. Bh5 {[%emt 0:00:43] White wants to mate with Bh4.} e5 {[%emt 0:00:21]} 44. dxe5+ {[%emt 0:00:58]} Ke6 {[%emt 0:00:01]} 45. Bh4 {[%emt 0:00:26] Threatening mate with Be8.} b5 {[%emt 0:01:41]} 46. Rg7 {[%emt 0:01:04][%csl Gh4][%cal Rg7e7]} d4+ {[%emt 0:00:13]} 47. Kxd4 {[%emt 0:10:46] Weighted Error Value: White=0.50/Black=0.67} 1-0

[Event "21st IPCA World Championship 2022"]
[Site "Ashdod"]
[Date "2022.05.15"]
[Round "8.8"]
[White "Srimskov, Elishar"]
[Black "Pilimon, Zbigniew"]
[Result "1-0"]
[ECO "D32"]
[WhiteElo "1992"]
[BlackElo "1620"]
[Annotator "TA"]
[PlyCount "93"]
[EventDate "2022.05.09"]
[EventType "swiss"]
[EventCountry "ISR"]
[SourceTitle "playchess.com"]
[Source "ChessBase"]
[SourceQuality "1"]
[TimeControl "5400+30"]

{[%evp 20,93,14,12,38,41,88,43,56,18,61,17,95,-9,85,-14,0,0,0,0,95,101,91,74,83,70,72,55,55,60,61,48,55,29,49,0,12,0,12,7,59,63,59,60,64,61,66,68,63,60,71,71,74,62,71,56,64,56,62,64,87,71,81,66,90,25,97,97,97,92,88,88,97,87,693,693]} 1. Nf3 {[%emt 0:00:10]} Nf6 {[%emt 0:00:36]} 2. c4 {[%emt 0:00:46]} e6 {[%emt 0:00:25]} 3. Nc3 {[%emt 0:00:21]} d5 {[%emt 0:00:30]} 4. e3 {[%emt 0:00:39]} c5 {[%emt 0:00:20]} 5. cxd5 {[%emt 0:00:50]} exd5 {[%emt 0:00:19]} 6. d4 {[%emt 0:00:41]} Nc6 {[%emt 0:01:10]} 7. Be2 {[%emt 0:00:32]} Be7 {[%emt 0:04:38]} 8. O-O {[%emt 0:00:41]} O-O {[%emt 0:00:08]} 9. a3 {[%emt 0:04:04]} a6 {[%emt 0:00:38]} 10. dxc5 {[%emt 0:00:40]} Bxc5 {[%emt 0:00:20]} 11. b4 {[%emt 0:00:59]} Be7 {[%emt 0:01:39] D32: Tarrasch Defence: Sidelines and lines without g3.} 12. Bb2 {[%emt 0:01:37]} b5 {[%emt 0:00:53] [#]} (12... Re8 $14 {should be considered.}) 13. Nd4 $146 {[%emt 0:00:47]} ({Predecessor:} 13. Rc1 Bb7 14. Bd3 Re8 15. Bb1 Bf8 {½-½ (15) Veljkovic,D (2137)-Jovicic,D (2130) Belgrade 2012}) 13... Ne5 {[%emt 0:00:34] White is slightly better.} 14. Qb1 {[%emt 0:06:28]} Qb6 {[%emt 0:04:46]} 15. Rd1 {[%emt 0:02:21]} Rd8 {[%emt 0:00:19]} (15... Nc4 $11) 16. Nf5 {[%emt 0:06:01]} (16. a4 $1 $16) 16... Bf8 {[%emt 0:01:02] [#]} (16... Bxf5 $11 17. Qxf5 Nc4 18. Bxc4 dxc4) 17. Nxd5 {[%emt 0:00:47]} Nxd5 {[%emt 0:02:19]} 18. Bxe5 {[%emt 0:01:08]} Qe6 {[%emt 0:01:09][%csl LRe5,LRf5]} 19. Bb2 {[%emt 0:20:47]} ({Wrong is} 19. Bc7 $2 Nc3 20. Rxd8 Nxb1 $19) 19... Bb7 {[%emt 0:02:21]} (19... Qxf5 $11 {remains equal.} 20. e4 Qe6) 20. Bf3 $36 {[%emt 0:01:25][%mdl 2048] Black is under strong pressure. White is more active.} Rac8 {[%emt 0:08:54]} 21. Nd4 {[%emt 0:03:05]} Qe7 {[%emt 0:04:35]} 22. Qd3 {[%emt 0:04:28]} Nb6 {[%emt 1:03:55]} 23. Bxb7 {[%emt 0:03:39]} Qxb7 {[%emt 0:00:00]} 24. Rac1 {[%emt 0:06:05]} Nc4 {[%emt 0:00:00]} 25. Qe2 {[%emt 0:01:08]} Qe4 {[%emt 0:00:00]} 26. Rc2 {[%emt 0:04:28]} Rd6 {[%emt 0:00:00]} 27. Bc1 {[%emt 0:03:37]} Rcd8 {[%emt 0:00:00]} 28. Re1 {[%emt 0:00:58][%cal Oa3a4]} h5 {[%emt 0:00:00]} 29. a4 {[%emt 0:04:31]} Rg6 {[%emt 0:00:00]} ({Black should play} 29... Rc8 $11) 30. f3 $14 {[%emt 0:00:26]} Qe5 {[%emt 0:00:00]} 31. axb5 {[%emt 0:00:43]} (31. f4 {seems wilder.} Qd5 32. axb5 axb5 33. Nxb5 Bxb4 34. Nc3) 31... axb5 {[%emt 0:00:00] [#]} 32. Nxb5 $1 {[%emt 0:03:04]} Bxb4 {[%emt 0:00:00] [#]} (32... Qxb5 33. Qxc4) 33. Rf1 {[%emt 0:00:15]} Qxb5 {[%emt 0:00:00]} 34. Qxc4 {[%emt 0:00:20]} Qxc4 {[%emt 0:00:00]} 35. Rxc4 {[%emt 0:00:03]} Rb6 {[%emt 0:00:00]} 36. Kf2 {[%emt 0:02:36]} Be7 {[%emt 0:00:00]} 37. Ke2 {[%emt 0:00:25]} Rb3 {[%emt 0:00:00]} 38. Rd1 {[%emt 0:00:25]} Rxd1 {[%emt 0:00:00]} 39. Kxd1 {[%emt 0:00:02][%mdl 4096] Endgame KRB-KRB} Bf6 {[%emt 0:00:00]} 40. Ke2 {[%emt 0:00:31]} g6 {[%emt 0:00:00]} 41. g3 {[%emt 0:00:23]} g5 {[%emt 0:00:00]} 42. h4 {[%emt 0:01:40]} (42. f4 $16) 42... Kg7 {[%emt 0:00:00]} (42... gxh4 43. gxh4 Rb1) (42... gxh4 $11 {keeps the balance.} 43. gxh4 Rb1) 43. hxg5 $16 {[%emt 0:00:44]} Bxg5 {[%emt 0:00:00]} 44. Rc5 {[%emt 0:01:16]} Kg6 {[%emt 0:00:00]} 45. Rc6+ {[%emt 0:16:24]} Bf6 {[%emt 0:11:30]} 46. e4 {[%emt 0:00:00] aiming for e5.} Rc3 $2 {[%emt 0:00:00][%mdl 8192] [#]} (46... Kg7 $16 47. Bf4 Rb2+ 48. Bd2 Ra2) 47. Rxf6+ $1 {[%emt 0:00:00][%mdl 512] Weighted Error Value: White=0.24 (precise) /Black=0.48} 1-0

[Event "21st IPCA World Championship 2022"]
[Site "Ashdod"]
[Date "2022.05.15"]
[Round "8.10"]
[White "Klein, Djimmy"]
[Black "Frumin, Rebeka"]
[Result "0-1"]
[ECO "D02"]
[WhiteElo "1392"]
[BlackElo "1319"]
[Annotator "NA RC COMBH"]
[PlyCount "102"]
[EventDate "2022.05.09"]
[EventType "swiss"]
[EventCountry "ISR"]
[SourceTitle "playchess.com"]
[Source "ChessBase"]
[SourceQuality "1"]
[TimeControl "5400+30"]

1. d4 {[%emt 0:00:08]} d5 {[%emt 0:01:04]} 2. Nf3 {[%emt 0:00:22]} Nf6 {[%emt 0:01:13]} 3. g3 {[%emt 0:00:23]} Nc6 {[%emt 0:02:59]} 4. Bg2 {[%emt 0:00:30]} Bf5 {[%emt 0:01:56]} 5. a3 {[%emt 0:00:22]} Qd7 {[%emt 0:01:48]} 6. O-O {[%emt 0:00:34]} Bh3 {[%emt 0:01:44]} 7. Nbd2 {[%emt 0:02:43]} Bxg2 {[%emt 0:01:44]} 8. Kxg2 {[%emt 0:00:10]} h5 {[%emt 0:04:41]} 9. c4 {[%emt 0:03:05]} h4 {[%emt 0:02:20]} 10. Nxh4 {[%emt 0:00:28]} dxc4 {[%emt 0:00:33]} 11. Ndf3 {[%emt 0:06:47]} O-O-O {[%emt 0:03:27]} 12. Be3 {[%emt 0:01:37]} Qd5 {[%emt 0:04:45]} 13. Qc2 {[%emt 0:03:32]} Ng4 {[%emt 0:01:02]} 14. Kg1 {[%emt 0:07:21]} Nxe3 {[%emt 0:04:38]} 15. fxe3 {[%emt 0:00:25]} Kb8 {[%emt 0:02:24]} 16. Rad1 {[%emt 0:00:30]} g5 {[%emt 0:00:57]} 17. Qf5 {[%emt 0:01:20]} gxh4 {[%emt 0:00:40]} 18. Nxh4 {[%emt 0:03:01]} Qxf5 {[%emt 0:00:21]} 19. Rxf5 {[%emt 0:01:04]} f6 {[%emt 0:00:49]} 20. Rc5 {[%emt 0:02:09]} Bh6 {[%emt 0:00:17]} 21. Kf2 {[%emt 0:00:57]} Bg5 {[%emt 0:01:11]} 22. Nf3 {[%emt 0:00:48]} Bh6 {[%emt 0:02:25]} 23. Rc1 {[%emt 0:00:33]} a6 {[%emt 0:03:59]} 24. R1xc4 {[%emt 0:01:15]} Bf8 {[%emt 0:01:42]} 25. Rf5 {[%emt 0:06:40]} Bg7 {[%emt 0:03:10]} 26. Nh4 {[%emt 0:09:51]} e5 {[%emt 0:03:16]} 27. Rf3 {[%emt 0:08:26]} exd4 {[%emt 0:01:25]} 28. exd4 {[%emt 0:00:40]} Rxd4 {[%emt 0:00:47]} 29. Rxd4 {[%emt 0:00:57]} Nxd4 {[%emt 0:00:12]} 30. Rf4 {[%emt 0:00:44]} Ne6 {[%emt 0:00:28]} 31. Re4 {[%emt 0:00:58]} Nc5 {[%emt 0:00:38]} 32. Re7 {[%emt 0:00:25]} Bh6 {[%emt 0:00:24]} 33. Ng6 {[%emt 0:00:30]} Rd8 {[%emt 0:00:28]} 34. Rh7 {[%emt 0:00:44]} Bc1 {[%emt 0:00:22]} 35. b4 {[%emt 0:04:03]} Na4 {[%emt 0:00:24]} 36. h4 {[%emt 0:00:39]} Bxa3 {[%emt 0:00:08]} 37. Nf4 {[%emt 0:00:15]} Bxb4 {[%emt 0:00:12]} 38. h5 {[%emt 0:00:38]} Bc5+ {[%emt 0:00:24]} 39. e3 {[%emt 0:00:11]} Re8 {[%emt 0:00:34]} 40. Nd5 {[%emt 0:01:08]} c6 {[%emt 0:01:07]} 41. Nxf6 {[%emt 0:05:03]} Rf8 {[%emt 0:02:08]} 42. Rh6 {[%emt 0:00:13]} Be7 {[%emt 0:00:17]} 43. g4 {[%emt 0:03:05]} Rxf6+ {[%emt 0:00:15]} 44. Rxf6 {[%emt 0:00:19]} Bxf6 {[%emt 0:00:09]} 45. h6 {[%emt 0:00:07]} Nc5 {[%emt 0:00:14]} 46. h7 {[%emt 0:00:13]} Ne4+ {[%emt 0:00:13]} 47. Kf3 {[%emt 0:01:32]} Ng5+ {[%emt 0:00:10]} 48. Kf4 {[%emt 0:00:06]} Nxh7 {[%emt 0:00:09]} 49. Kf5 {[%emt 0:00:12]} Bg5 {[%emt 0:00:28]} 50. e4 {[%emt 0:00:28]} Bd8 {[%emt 0:00:16]} 51. e5 {[%emt 0:00:17]} Kc7 {[%emt 0:00:12]} 0-1